bitfinex/quotes_BTCUSD_20251015
["timestamp","ask_amount","ask_price","bid_price","bid_amount"]
[1760534871160,1e-08,111800.0,111790.0,0.38790111]
[1760534871362,1e-08,111800.0,111790.0,0.50034111]
[1760534871854,1e-08,111800.0,111790.0,0.38790111]
[1760534872087,0.20133229,111840.0,111830.0,0.17884288]
[1760534872296,0.32133229,111840.0,111830.0,0.17884288]
[1760534872911,0.12,111840.0,111830.0,0.17884288]
[1760534873119,0.5004,111860.0,111850.0,0.1788109]
[1760534873343,4.97140345,111860.0,111850.0,0.1788109]
[1760534873545,0.12090145,111860.0,111850.0,0.1788109]
[1760534873960,0.46090145,111860.0,111850.0,0.1788109]
[1760534874589,0.63969637,111860.0,111850.0,0.1788109]
[1760534874791,0.67119068,111860.0,111850.0,0.1788109]
[1760534875016,0.49239576,111860.0,111850.0,0.1788109]
[1760534876883,0.67119068,111860.0,111850.0,0.1788109]
[1760534877064,0.15239576,111860.0,111850.0,0.22582124]
[1760534878233,0.03239576,111860.0,111850.0,0.22082124]
[1760534878450,4.850502,111880.0,111870.0,0.17877893]
[1760534878660,0.13015036,111880.0,111870.0,0.17877893]
[1760534879115,0.13480682,111880.0,111870.0,0.17877893]
[1760534879321,0.13480682,111880.0,111870.0,0.2053097]
[1760534879572,0.31356978,111880.0,111870.0,0.17877893]
[1760534879804,0.17879492,111860.0,111850.0,0.18275144]
[1760534880015,0.17877945,111870.0,111860.0,0.17879492]
[1760534880254,0.29877945,111870.0,111850.0,0.18275144]
[1760534880505,0.29877945,111870.0,111820.0,0.21502677]
[1760534880506,5.1304409,111850.0,111820.0,0.25059659]
[1760534880715,5.1304409,111850.0,111820.0,0.0717521]
[1760534880716,0.51884288,111830.0,111820.0,0.0717521]
[1760534880922,0.51884288,111830.0,111820.0,0.25061098]
[1760534880923,0.35,111830.0,111820.0,0.25061098]
[1760534881331,0.35,111830.0,111820.0,0.17885888]
[1760534881948,0.35015025,111830.0,111820.0,0.17885888]
[1760534882520,0.35015025,111830.0,111820.0,0.22587921]
[1760534883997,0.01015025,111830.0,111820.0,0.22587921]
[1760534884209,0.01015025,111830.0,111820.0,0.17885888]
[1760534884415,0.18899313,111830.0,111810.0,0.17886438]
[1760534884624,0.18899313,111830.0,111820.0,0.17885888]
[1760534884842,0.01015025,111830.0,111820.0,0.19070287]
[1760534885048,0.01015025,111830.0,111820.0,0.2276596]
[1760534885251,0.01015025,111830.0,111820.0,0.21581561]
[1760534886103,0.01015025,111830.0,111820.0,0.17885888]
[1760534886510,0.0118972,111830.0,111820.0,0.17885888]
[1760534886926,0.3518972,111830.0,111820.0,0.17885888]
[1760534887131,0.53074008,111830.0,111810.0,0.29130438]
[1760534887369,0.17885898,111820.0,111810.0,0.17886936]
[1760534887604,0.51887487,111810.0,111780.0,0.18781138]
[1760534887814,4.79052087,111800.0,111780.0,0.21471415]
[1760534888020,4.83052087,111800.0,111780.0,0.18781138]
[1760534888229,0.21889087,111800.0,111790.0,0.17890687]
[1760534888435,0.04,111800.0,111790.0,0.17890687]
[1760534889854,0.04,111800.0,111790.0,0.2268267]
[1760534890068,0.04,111800.0,111790.0,0.17890687]
[1760534890950,0.21889087,111800.0,111780.0,0.18781138]
[1760534891173,0.21889087,111800.0,111780.0,0.17892288]
[1760534891366,0.51890843,111790.0,111780.0,0.17892288]
[1760534891574,0.63890843,111790.0,111780.0,0.17892288]
[1760534892232,0.38068836,111790.0,111770.0,0.18781038]
[1760534892446,0.12,111790.0,111780.0,0.17892288]
[1760534895679,0.29890687,111790.0,111780.0,0.17892288]
[1760534895887,0.12,111790.0,111780.0,0.17892288]
[1760534896099,0.12,111790.0,111770.0,0.18831183]
[1760534896309,0.34,111780.0,111770.0,0.00050145]
[1760534896514,0.46,111780.0,111770.0,0.18037444]
[1760534896715,0.46,111780.0,111770.0,0.17944034]
[1760534897634,0.46,111780.0,111770.0,0.21644098]
[1760534899234,0.46,111780.0,111770.0,0.17944034]
[1760534900977,0.46,111780.0,111770.0,0.29196034]
[1760534901461,0.46,111780.0,111770.0,0.17944034]
[1760534901802,0.46,111780.0,111770.0,0.18144034]
[1760534902035,0.46,111780.0,111770.0,0.29396034]
[1760534902237,0.46,111780.0,111770.0,0.34241298]
[1760534902499,0.46,111780.0,111770.0,0.05095409]
[1760534902628,0.63892288,111780.0,111770.0,0.11502145]
[1760534902851,0.63892288,111780.0,111770.0,0.00250145]
[1760534903206,0.63892288,111780.0,111770.0,0.18144034]
[1760534903207,0.46,111780.0,111770.0,0.18144034]
[1760534903711,0.46,111780.0,111770.0,0.18044034]
[1760534904129,0.46,111780.0,111770.0,0.18144034]
[1760534904947,0.46,111780.0,111770.0,0.18044034]
[1760534905158,0.46,111780.0,111770.0,0.00150145]
[1760534905159,0.70543621,111780.0,111770.0,0.00150145]
[1760534905791,0.63892288,111780.0,111770.0,0.00150145]
[1760534906870,0.63892288,111780.0,111770.0,0.00050145]
[1760534909168,0.63892288,111780.0,111770.0,0.00262579]
[1760534910870,0.65561127,111780.0,111770.0,0.00262579]
[1760534912912,5.26724127,111780.0,111770.0,0.00262579]
[1760534913053,5.35692335,111780.0,111770.0,0.00262579]
[1760534913253,5.38383809,111780.0,111770.0,0.00262579]
[1760534913658,5.39889311,111780.0,111770.0,0.00262579]
[1760534913918,5.40724315,111780.0,111770.0,0.00262579]
[1760534915427,5.40924315,111780.0,111770.0,0.00262579]
[1760534915874,5.41346552,111780.0,111770.0,0.00262579]
[1760534916095,5.44445983,111780.0,111770.0,0.00262579]
[1760534917470,5.42940481,111780.0,111770.0,0.00262579]
[1760534917967,5.41346552,111780.0,111770.0,0.00262579]
[1760534927678,5.38655078,111780.0,111770.0,0.00262579]
[1760534928765,5.38656444,111780.0,111770.0,0.00262579]
[1760534932092,5.38660694,111780.0,111770.0,0.00262579]
[1760534936944,5.38661567,111780.0,111770.0,0.00262579]
[1760534940399,5.40161533,111780.0,111770.0,0.00262579]
[1760534942016,5.1305849,111760.0,111750.0,0.0717521]
[1760534942212,5.35699787,111760.0,111750.0,0.07180221]
[1760534942419,5.38469029,111760.0,111750.0,5.011e-05]
[1760534942624,5.40431307,111760.0,111750.0,5.011e-05]
[1760534942829,0.51898693,111740.0,111730.0,0.0717521]
[1760534942985,5.14734782,111740.0,111730.0,0.0717521]
[1760534943187,5.32894703,111740.0,111730.0,0.0717521]
[1760534943395,0.51901702,111730.0,111710.0,0.0721521]
[1760534943602,0.66574791,111730.0,111710.0,0.25765555]
[1760534943798,0.66574791,111730.0,111710.0,0.2511867]
[1760534944227,0.66574791,111730.0,111710.0,0.1794346]
[1760534944442,0.64901702,111730.0,111710.0,0.1794346]
[1760534944973,0.64901702,111730.0,111710.0,0.1804346]
[1760534945182,0.64901702,111730.0,111710.0,0.0014]
[1760534945383,0.51901897,111720.0,111710.0,0.0014]
[1760534945681,0.36,111720.0,111710.0,0.0014]
[1760534945877,0.36,111720.0,111710.0,0.00504506]
[1760534946315,0.36,111720.0,111710.0,0.00604506]
[1760534946515,0.36,111720.0,111710.0,0.18508006]
[1760534946669,0.36,111720.0,111710.0,0.18756207]
[1760534946877,0.36,111720.0,111710.0,0.181435]
[1760534947243,5.13068102,111700.0,111690.0,0.0004]
[1760534947460,5.26739414,111700.0,111690.0,0.0004]
[1760534947673,5.30196382,111700.0,111690.0,0.0004]
[1760534948138,0.51906706,111690.0,111680.0,0.0004]
[1760534948380,5.16266976,111690.0,111680.0,0.0004]
[1760534948590,5.13071309,111680.0,111670.0,0.0004]
[1760534948812,5.27742621,111680.0,111670.0,0.0004]
[1760534949020,5.29268579,111680.0,111670.0,0.00623248]
[1760534949255,5.29323424,111680.0,111670.0,0.00623248]
[1760534949496,5.34483345,111680.0,111670.0,0.00623248]
[1760534949954,5.34583345,111680.0,111670.0,0.00623248]
[1760534950899,5.36514355,111680.0,111670.0,0.00623248]
[1760534951093,5.36614355,111680.0,111670.0,0.00623248]
[1760534953097,5.36614355,111680.0,111670.0,0.00636845]
[1760534953519,5.36602013,111680.0,111670.0,0.00636845]
[1760534955342,5.40331409,111680.0,111670.0,0.00636845]
[1760534955906,5.36819596,111680.0,111670.0,0.00636845]
[1760534956675,5.38814389,111680.0,111670.0,0.00636845]
[1760534962735,5.36819596,111680.0,111670.0,0.00636845]
[1760534963362,5.31659675,111680.0,111670.0,0.00636845]
[1760534963648,4.97659675,111680.0,111670.0,0.00636845]
[1760534963858,4.96000705,111680.0,111670.0,0.00636845]
[1760534964063,5.06164205,111680.0,111670.0,0.00636845]
[1760534964400,0.68837705,111680.0,111670.0,0.00636845]
[1760534966186,0.16929396,111680.0,111670.0,0.18782005]
[1760534966333,0.16929396,111680.0,111670.0,0.04308118]
[1760534966548,0.16929396,111680.0,111670.0,0.0448544]
[1760534966750,0.50929396,111680.0,111670.0,0.04770068]
[1760534966954,0.16829396,111680.0,111670.0,0.04770068]
[1760534967153,0.16829396,111680.0,111670.0,0.22679981]
[1760534967373,0.03729396,111680.0,111670.0,0.22218031]
[1760534967590,0.08931119,111720.0,111690.0,0.17906214]
[1760534967787,4.373265,111710.0,111690.0,0.03670817]
[1760534967994,0.34,111700.0,111690.0,0.21700523]
[1760534968209,0.01,111700.0,111690.0,0.21577523]
[1760534968407,0.25078384,111720.0,111690.0,0.21577523]
[1760534968641,0.40739025,111720.0,111700.0,0.00280559]
[1760534968839,0.34,111710.0,111700.0,0.00280559]
[1760534969041,0.35,111710.0,111700.0,0.00280559]
[1760534969462,0.56321132,111710.0,111680.0,0.17908078]
[1760534969642,0.56321132,111710.0,111690.0,0.0025086]
[1760534969873,0.51905102,111700.0,111690.0,0.0025086]
[1760534970019,0.51905102,111700.0,111680.0,0.0443072]
[1760534970426,0.52905102,111700.0,111680.0,0.1571072]
[1760534970739,0.52905102,111700.0,111670.0,0.21581578]
[1760534971191,0.52905102,111700.0,111680.0,0.1128]
[1760534971351,0.18905102,111700.0,111670.0,0.03671825]
[1760534971552,0.17907584,111690.0,111680.0,0.1128]
[1760534971751,0.01,111690.0,111680.0,0.01658557]
[1760534972464,0.01,111690.0,111670.0,0.11333597]
[1760534972465,0.18906706,111690.0,111670.0,0.11333597]
[1760534972668,0.17908309,111680.0,111670.0,0.00053597]
[1760534972890,0.3332795,111680.0,111670.0,0.00053597]
[1760534973296,0.6732795,111680.0,111670.0,0.00053597]
[1760534973850,0.6732795,111680.0,111670.0,0.00636845]
[1760534974280,0.65571957,111680.0,111670.0,0.00636845]
[1760534974972,0.47663648,111680.0,111670.0,0.00636845]
[1760534975165,0.65571957,111680.0,111670.0,0.00636845]
[1760534979491,0.73919823,111680.0,111670.0,0.00636845]
[1760534979691,0.75675843,111680.0,111670.0,0.00636845]
[1760534980561,0.65571957,111680.0,111670.0,0.00636845]
[1760534981518,0.4354085,111680.0,111670.0,0.00636845]
[1760534981723,0.4954085,111680.0,111670.0,0.00636845]
[1760534991506,0.4954085,111680.0,111670.0,0.00656845]
[1760534996075,0.31632541,111680.0,111670.0,0.00656845]
[1760534996334,0.4954085,111680.0,111670.0,0.00656845]
[1760534998254,0.35311291,111680.0,111670.0,0.00656845]
[1760534998479,0.532196,111680.0,111670.0,0.00656845]
[1760534999040,0.35311291,111680.0,111670.0,0.00656845]
[1760534999259,0.532196,111680.0,111670.0,0.00656845]
[1760534999764,0.35311291,111680.0,111670.0,0.00656845]
[1760535000333,0.532196,111680.0,111670.0,0.00656845]
[1760535000607,0.0467875,111680.0,111670.0,0.00656845]
[1760535000900,0.55166886,111680.0,111670.0,0.00656845]
[1760535001105,4.94249419,111680.0,111670.0,0.00656845]
[1760535001350,4.99652084,111680.0,111670.0,0.00656845]
[1760535001586,5.01656388,111680.0,111670.0,0.00656845]
[1760535001794,4.98732607,111680.0,111670.0,1e-08]
[1760535002005,5.02492944,111680.0,111670.0,1e-08]
[1760535002214,5.0048864,111680.0,111670.0,1e-08]
[1760535002426,0.51909913,111670.0,111660.0,0.0002]
[1760535002635,5.06667969,111670.0,111660.0,0.00069934]
[1760535003938,4.85999019,111670.0,111660.0,0.00069934]
[1760535004122,0.30909913,111670.0,111660.0,0.00069934]
[1760535004398,0.64909913,111670.0,111660.0,0.00069934]
[1760535004850,0.13,111670.0,111660.0,0.00069934]
[1760535005061,0.471,111670.0,111660.0,0.00069934]
[1760535005729,0.47,111670.0,111660.0,0.00069934]
[1760535006148,0.64909913,111670.0,111660.0,0.00069934]
[1760535006363,0.73564841,111670.0,111660.0,0.00069934]
[1760535006603,5.10891341,111670.0,111660.0,0.00069934]
[1760535008414,4.92981428,111670.0,111660.0,0.0012829]
[1760535008424,0.03102469,111680.0,111660.0,0.0012829]
[1760535008697,0.17909913,111670.0,111660.0,0.0012829]
[1760535008928,0.29909913,111670.0,111660.0,0.0012829]
[1760535009838,4.67236413,111670.0,111660.0,0.0012829]
[1760535010059,4.76204621,111670.0,111660.0,0.0012829]
[1760535010291,5.10204621,111670.0,111660.0,0.0012829]
[1760535010974,0.46,111670.0,111660.0,0.0012829]
[1760535011195,0.63909913,111670.0,111660.0,0.0012829]
[1760535011663,0.64009913,111670.0,111660.0,0.0012829]
[1760535012350,0.46,111670.0,111660.0,0.0012829]
[1760535013077,0.46,111670.0,111660.0,0.00680581]
[1760535013538,0.03076017,111680.0,111660.0,0.18592098]
[1760535013756,4.62407359,111700.0,111670.0,0.17909576]
[1760535013952,0.27976114,111700.0,111680.0,0.00148757]
[1760535014227,0.34,111690.0,111680.0,0.00148757]
[1760535014455,0.21878468,111700.0,111670.0,0.00178022]
[1760535014680,0.17906706,111690.0,111670.0,0.00178022]
[1760535014891,0.34,111680.0,111670.0,0.00178022]
[1760535015354,0.51908309,111680.0,111670.0,0.00178022]
[1760535015551,0.52908309,111680.0,111660.0,0.1152429]
[1760535015787,0.35,111680.0,111670.0,0.00119301]
[1760535016473,0.34,111680.0,111670.0,0.00119301]
[1760535016952,0.34,111680.0,111670.0,0.00208839]
[1760535017450,0.34,111680.0,111670.0,0.002]
[1760535017451,0.52908309,111680.0,111670.0,0.002]
[1760535017675,0.52908309,111680.0,111670.0,0.001]
[1760535017913,0.17909913,111670.0,111660.0,0.0012829]
[1760535018133,0.18909913,111670.0,111660.0,0.0012829]
[1760535018368,4.63318235,111670.0,111660.0,0.0012829]
[1760535018592,4.97318235,111670.0,111660.0,0.0012829]
[1760535020350,4.97318235,111670.0,111660.0,1e-08]
[1760535020569,4.9898531,111670.0,111660.0,1e-08]
[1760535021374,5.02603538,111670.0,111660.0,1e-08]
[1760535021586,4.89238017,111660.0,111650.0,0.00020001]
[1760535021798,5.12923332,111660.0,111650.0,0.00020001]
[1760535022007,5.02288049,111660.0,111650.0,0.00020001]
[1760535022433,4.68288049,111660.0,111650.0,0.00020001]
[1760535022649,0.17913121,111650.0,111640.0,0.2617423]
[1760535022886,5.02239621,111650.0,111640.0,0.21706457]
[1760535024891,5.02339621,111650.0,111640.0,0.21706457]
[1760535025094,5.11307829,111650.0,111640.0,0.21706457]
[1760535025304,0.55532953,111640.0,111630.0,0.13040661]
[1760535025538,5.01241225,111640.0,111630.0,0.13040661]
[1760535028050,4.8924283,111630.0,111620.0,0.18177686]
[1760535028282,5.0124283,111630.0,111620.0,0.18177686]
[1760535028508,5.08289137,111630.0,111620.0,0.18411209]
[1760535028956,5.10012424,111630.0,111620.0,0.18411209]
[1760535029191,5.10012424,111630.0,111620.0,0.13411209]
[1760535030350,0.55536163,111620.0,111600.0,0.18753926]
[1760535030576,4.89247646,111600.0,111590.0,0.1368876]
[1760535030814,5.04865874,111600.0,111590.0,0.1368876]
[1760535031066,5.06623087,111600.0,111590.0,0.1368876]
[1760535031532,5.065767,111600.0,111590.0,0.1368876]
[1760535031763,5.06574881,111600.0,111590.0,0.1368876]
[1760535032034,5.17266408,111600.0,111590.0,0.0770506]
[1760535032518,4.94590799,111590.0,111580.0,0.13829322]
[1760535032740,5.15672874,111590.0,111580.0,0.13829322]
[1760535033422,0.17924359,111580.0,111570.0,0.000896]
[1760535033653,5.0836995,111580.0,111570.0,1e-08]
[1760535033882,5.0836995,111580.0,111550.0,0.14442978]
[1760535033883,0.555458,111560.0,111550.0,0.14442978]
[1760535034127,5.08453505,111560.0,111550.0,0.14442978]
[1760535034359,5.17421713,111560.0,111550.0,0.14442978]
[1760535034633,5.20119708,111560.0,111550.0,0.14442978]
[1760535034858,5.219412,111560.0,111550.0,0.14442978]
[1760535035085,4.92873907,111550.0,111530.0,0.14433884]
[1760535035313,5.08495294,111550.0,111530.0,0.14433884]
[1760535035522,5.14918363,111550.0,111530.0,0.14433884]
[1760535036209,0.17930787,111540.0,111530.0,0.14433884]
[1760535036419,5.05878086,111540.0,111530.0,0.14433884]
[1760535036645,5.07624877,111540.0,111530.0,0.14433884]
[1760535036874,5.16593085,111540.0,111530.0,0.14433884]
[1760535037307,5.42877122,111530.0,111520.0,1e-08]
[1760535037550,4.9287873,111520.0,111510.0,0.14787934]
[1760535037773,5.0487873,111520.0,111510.0,0.14787934]
[1760535037995,4.833265,111520.0,111510.0,0.14787934]
[1760535038226,0.46,111520.0,111510.0,0.14487934]
[1760535038511,0.1308297,111520.0,111510.0,0.43839545]
[1760535038735,0.1313291,111520.0,111510.0,0.52807753]
[1760535039405,0.0113291,111520.0,111510.0,0.34872142]
[1760535039612,0.0113291,111520.0,111510.0,0.52807753]
[1760535040511,0.0113291,111520.0,111510.0,0.34872142]
[1760535040724,0.0113291,111520.0,111510.0,0.26003934]
[1760535040938,0.0113291,111520.0,111510.0,0.14587934]
[1760535041391,4.6718685,111520.0,111510.0,0.02875899]
[1760535041634,0.51935611,111510.0,111500.0,5.97949586]
[1760535041856,0.51935611,111510.0,111500.0,5.41882089]
[1760535041857,5.06983414,111510.0,111500.0,5.41882089]
[1760535042101,5.10350732,111510.0,111500.0,5.20020075]
[1760535042366,5.4671286,111510.0,111500.0,4.95412624]
[1760535042591,5.0950783,111510.0,111500.0,4.75545546]
[1760535042807,5.11231162,111510.0,111500.0,4.62074133]
[1760535043026,5.20102796,111510.0,111500.0,4.33571597]
[1760535043250,5.20102796,111510.0,111500.0,3.96564163]
[1760535043471,5.20102796,111510.0,111500.0,3.88906475]
[1760535043708,5.43847524,111510.0,111500.0,3.68965722]
[1760535043970,5.42440689,111510.0,111500.0,3.5304952]
[1760535044195,5.42440689,111510.0,111500.0,3.27178731]
[1760535044413,5.7983174,111510.0,111500.0,2.95551102]
[1760535044634,5.7993174,111510.0,111500.0,2.34392976]
[1760535044847,5.4254626,111510.0,111500.0,2.21282435]
[1760535045075,5.37886269,111510.0,111500.0,2.21282435]
[1760535045294,5.42646291,111510.0,111500.0,1.77530056]
[1760535045517,5.42646291,111510.0,111500.0,1.64236482]
[1760535045729,5.42646291,111510.0,111500.0,1.40441436]
[1760535045957,5.2064209,111510.0,111500.0,1.40441436]
[1760535046197,5.4048139,111510.0,111500.0,1.40441436]
[1760535046421,5.4048139,111510.0,111500.0,0.83190161]
[1760535046660,5.16736662,111510.0,111500.0,0.4918998]
[1760535046881,5.181436,111510.0,111500.0,0.44392336]
[1760535047103,4.80964433,111510.0,111500.0,0.44392336]
[1760535047320,4.74151962,111510.0,111500.0,0.44392336]
[1760535047554,4.72745024,111510.0,111500.0,0.44392336]
[1760535048225,4.702658,111510.0,111500.0,0.44392336]
[1760535049121,0.15003689,111510.0,111500.0,0.44392336]
[1760535049351,0.131,111510.0,111500.0,0.44392336]
[1760535049567,0.131,111510.0,111500.0,0.55908336]
[1760535050005,0.65035611,111510.0,111500.0,0.44392336]
[1760535050252,0.131,111510.0,111500.0,0.44392336]
[1760535050479,0.001,111510.0,111500.0,0.62329555]
[1760535050749,0.0004994,111520.0,111500.0,0.62329555]
[1760535050986,0.0004994,111520.0,111510.0,0.29763273]
[1760535051224,0.29788764,111580.0,111540.0,0.1882694]
[1760535051447,0.0717521,111560.0,111550.0,0.11888097]
[1760535051660,0.0717521,111580.0,111550.0,0.30713271]
[1760535051873,0.0717521,111580.0,111560.0,0.00360469]
[1760535052096,0.17924309,111590.0,111570.0,0.11536]
[1760535052324,0.02,111590.0,111570.0,0.29461965]
[1760535052549,0.02,111590.0,111580.0,0.11532]
[1760535052983,0.18816424,111610.0,111580.0,0.29456124]
[1760535053209,4.373265,111600.0,111580.0,0.11532]
[1760535053443,0.17919607,111610.0,111580.0,0.11880924]
[1760535053672,0.17919607,111610.0,111590.0,0.11532]
[1760535053673,4.56143709,111600.0,111590.0,0.11532]
[1760535053885,0.48,111600.0,111590.0,0.11532]
[1760535054118,0.14,111600.0,111590.0,0.11532]
[1760535054332,0.31921146,111600.0,111590.0,0.11532]
[1760535054539,0.34,111590.0,111580.0,0.00420589]
[1760535054755,0.42,111590.0,111580.0,0.11547043]
[1760535055216,0.42,111590.0,111580.0,0.00015043]
[1760535055487,0.42,111590.0,111580.0,0.11547043]
[1760535055699,0.08,111590.0,111580.0,0.00015043]
[1760535055906,0.08,111590.0,111580.0,0.11547043]
[1760535056125,0.08,111590.0,111580.0,0.00142291]
[1760535056342,0.08,111590.0,111580.0,0.00015043]
[1760535056566,0.08,111590.0,111580.0,0.11543043]
[1760535057219,0.08,111590.0,111580.0,0.00015043]
[1760535057448,0.08,111590.0,111580.0,0.11539043]
[1760535057672,0.30814066,111620.0,111580.0,0.17939402]
[1760535057902,4.483265,111620.0,111590.0,0.18179553]
[1760535058154,0.11,111620.0,111590.0,0.17922437]
[1760535058375,0.34,111610.0,111600.0,0.11809879]
[1760535058609,0.11,111610.0,111600.0,0.29731025]
[1760535058825,0.18810542,111640.0,111610.0,0.17919378]
[1760535059047,4.513265,111640.0,111620.0,0.29670561]
[1760535059269,0.14,111640.0,111630.0,0.2966928]
[1760535059506,0.025,111670.0,111640.0,0.18810417]
[1760535059726,0.145,111670.0,111650.0,0.11828372]
[1760535059943,0.145,111670.0,111650.0,0.00296372]
[1760535059944,0.34,111660.0,111650.0,0.00296372]
[1760535060157,0.07,111660.0,111650.0,0.11536]
[1760535060373,0.25857172,111660.0,111650.0,0.11536]
[1760535060609,0.17914725,111640.0,111630.0,0.0717521]
[1760535060820,0.65914725,111640.0,111630.0,0.0717521]
[1760535061064,0.34,111630.0,111610.0,0.1871521]
[1760535061298,0.34,111630.0,111620.0,0.33259597]
[1760535061526,0.00050001,111660.0,111650.0,0.18013121]
[1760535061749,0.03050001,111660.0,111650.0,0.11648]
[1760535062046,0.03050001,111660.0,111650.0,0.1470049]
[1760535062281,0.00050001,111660.0,111650.0,0.11916068]
[1760535062712,0.00050001,111660.0,111650.0,0.33447417]
[1760535062986,0.00050001,111660.0,111650.0,0.33075349]
[1760535063220,0.00050001,111660.0,111650.0,0.21531349]
[1760535063443,0.00050001,111660.0,111650.0,0.33075349]
[1760535063675,0.00050001,111660.0,111650.0,0.08717235]
[1760535063890,0.51961518,111660.0,111650.0,0.1154]
[1760535064101,0.51913872,111650.0,111630.0,0.0717521]
[1760535064319,0.34,111650.0,111640.0,0.1154]
[1760535064562,0.00050001,111660.0,111650.0,0.21531349]
[1760535064779,0.00050001,111660.0,111650.0,0.3703684]
[1760535065456,0.00050001,111660.0,111650.0,0.4858084]
[1760535065911,0.00050001,111660.0,111650.0,0.95639217]
[1760535066122,0.00050001,111660.0,111650.0,0.95739217]
[1760535066337,0.00050001,111660.0,111650.0,0.4868084]
[1760535066550,0.00050001,111660.0,111650.0,0.3713684]
[1760535066762,0.00050001,111660.0,111650.0,0.4867684]
[1760535067275,0.00050001,111660.0,111650.0,0.3723684]
[1760535067498,0.00446152,111690.0,111660.0,0.68588122]
[1760535067715,0.00446152,111690.0,111680.0,0.21526537]
[1760535067934,0.00446152,111690.0,111680.0,0.33066537]
[1760535068151,0.00446152,111690.0,111680.0,0.15154228]
[1760535068365,0.00446152,111690.0,111680.0,0.33062537]
[1760535068814,0.00446152,111690.0,111680.0,0.30495549]
[1760535069026,0.00446152,111690.0,111680.0,0.35620954]
[1760535069234,0.00446152,111690.0,111680.0,0.46956954]
[1760535069886,0.00446152,111690.0,111680.0,0.35420954]
[1760535070101,0.00446152,111690.0,111680.0,0.47056954]
[1760535070319,0.00446152,111690.0,111680.0,0.47052954]
[1760535070529,0.0004,111720.0,111710.0,0.21521728]
[1760535070739,0.0004,111720.0,111710.0,0.19092771]
[1760535070958,0.0004,111720.0,111710.0,0.36996271]
[1760535071264,0.0004,111720.0,111710.0,0.19092771]
[1760535071482,0.0004,111720.0,111710.0,0.25464271]
[1760535071705,0.0004,111720.0,111710.0,0.45980326]
[1760535072159,0.0004,111770.0,111750.0,0.21515207]
[1760535072373,0.1204,111770.0,111750.0,0.25545847]
[1760535072607,0.1204,111770.0,111760.0,0.13321549]
[1760535072814,0.4604,111770.0,111760.0,0.16850985]
[1760535073020,0.1204,111770.0,111760.0,0.16850985]
[1760535073236,0.34,111760.0,111750.0,0.04030677]
[1760535073444,0.0004,111770.0,111750.0,0.15161271]
[1760535073672,0.1004,111770.0,111760.0,0.03618228]
[1760535073895,0.27933889,111770.0,111760.0,0.11528]
[1760535074104,4.8922199,111760.0,111750.0,0.00015043]
[1760535074323,5.0222199,111760.0,111750.0,0.00015043]
[1760535074749,5.0222199,111760.0,111750.0,0.00115043]
[1760535075225,0.6489549,111760.0,111750.0,0.00015043]
[1760535075465,5.0232199,111760.0,111750.0,0.00015043]
[1760535076776,5.0242199,111760.0,111750.0,0.00015043]
[1760535077195,5.02830069,111760.0,111750.0,0.00015043]
[1760535077417,5.02830069,111760.0,111750.0,1e-08]
[1760535077418,5.02730069,111760.0,111750.0,1e-08]
[1760535077900,5.02830069,111760.0,111750.0,1e-08]
[1760535078331,4.68830069,111760.0,111750.0,1e-08]
[1760535078758,5.02830069,111760.0,111750.0,1e-08]
[1760535079621,4.84834579,111760.0,111750.0,1e-08]
[1760535079831,0.00508079,111760.0,111750.0,0.0178971]
[1760535080040,0.18303569,111760.0,111750.0,0.0412037]
[1760535080260,0.18303569,111760.0,111750.0,0.0178971]
[1760535080700,0.00408079,111760.0,111750.0,0.0178971]
[1760535080907,0.00408079,111760.0,111750.0,0.00812395]
[1760535081121,0.00408079,111760.0,111750.0,0.34732052]
[1760535081337,0.00408079,111760.0,111750.0,0.2151532]
[1760535081561,0.00408079,111760.0,111750.0,0.3698469]
[1760535082205,0.00408079,111760.0,111750.0,0.45953702]
[1760535082422,0.00408079,111760.0,111750.0,0.34425702]
[1760535082637,0.00408079,111760.0,111750.0,0.2545669]
[1760535082845,0.00408079,111760.0,111750.0,0.3698069]
[1760535083078,0.00408079,111760.0,111750.0,0.45949702]
[1760535083292,0.0004,111770.0,111760.0,0.21513718]
[1760535083508,0.0004,111770.0,111760.0,0.39450938]
[1760535083719,0.0004,111770.0,111760.0,0.50974938]
[1760535084423,0.0004,111770.0,111760.0,0.50978938]
[1760535084648,0.0004,111770.0,111760.0,0.30581926]
[1760535084874,0.0004,111770.0,111760.0,0.3048273]
[1760535085091,0.0004,111770.0,111760.0,0.4201073]
[1760535086005,0.0004,111770.0,111760.0,0.3048273]
[1760535086219,0.0004,111770.0,111760.0,0.3058273]
[1760535086428,0.0004,111770.0,111760.0,0.4220273]
[1760535086658,0.0004,111770.0,111760.0,0.48506849]
[1760535086875,0.0004,111770.0,111760.0,0.48606849]
[1760535087520,0.0004,111770.0,111760.0,0.48614849]
[1760535087741,0.0004,111770.0,111760.0,0.37086849]
[1760535088167,0.0004,111770.0,111760.0,0.48610849]
[1760535088407,0.0004,111770.0,111760.0,0.37086849]
[1760535088626,0.0004,111770.0,111760.0,0.36023609]
[1760535088836,0.0004,111770.0,111760.0,0.39641837]
[1760535089284,0.00098272,111770.0,111760.0,0.06604119]
[1760535089502,0.00098272,111770.0,111760.0,0.002]
[1760535089949,0.51992161,111770.0,111760.0,0.002]
[1760535090166,0.34098272,111770.0,111760.0,0.002]
[1760535090431,0.34098272,111770.0,111760.0,0.03818228]
[1760535090667,0.34098272,111770.0,111760.0,0.34827267]
[1760535090668,0.00098272,111770.0,111760.0,0.34827267]
[1760535090884,0.00098272,111770.0,111760.0,0.38310151]
[1760535091100,0.00098272,111770.0,111760.0,0.20614661]
[1760535091322,0.00098272,111770.0,111760.0,0.15342228]
[1760535091535,0.00098272,111770.0,111760.0,0.17131777]
[1760535091794,0.00098272,111770.0,111760.0,0.23503267]
[1760535092006,0.00098272,111770.0,111760.0,0.03818228]
[1760535092242,0.17992161,111770.0,111760.0,0.002]
[1760535093083,0.00098272,111770.0,111760.0,0.01989549]
[1760535093302,0.17992161,111770.0,111760.0,0.02188663]
[1760535093520,0.17992161,111770.0,111760.0,0.002]
[1760535093743,0.1882309,111770.0,111760.0,0.002]
[1760535094197,0.00929201,111770.0,111760.0,0.002]
[1760535094401,0.00929201,111770.0,111760.0,0.23364907]
[1760535094627,0.17992161,111770.0,111760.0,0.03818228]
[1760535094862,0.1882309,111770.0,111760.0,0.002]
[1760535095100,0.1982309,111770.0,111760.0,0.002]
[1760535095331,4.92814459,111770.0,111760.0,0.002]
[1760535095561,4.92814459,111770.0,111760.0,0.001]
[1760535095790,4.92814459,111770.0,111760.0,1e-08]
[1760535096018,4.92814459,111770.0,111750.0,1e-08]
[1760535096019,4.8922199,111760.0,111750.0,1e-08]
[1760535096265,4.960176,111760.0,111750.0,1e-08]
[1760535096495,5.070176,111760.0,111750.0,1e-08]